bitfinex-derivatives/quotes_BNBF0:USTF0_20260110
["timestamp","ask_amount","ask_price","bid_price","bid_amount"]
[1768026711964,0.19149656,909.08,908.3,0.68610113]
[1768026712164,0.19149656,909.08,908.31,0.68610113]
[1768026712367,0.19149656,909.08,908.32,0.68610113]
[1768026712568,0.19149656,909.08,908.33,0.68610113]
[1768026712863,0.19149656,909.08,908.34,0.68610113]
[1768026713068,0.19149656,909.08,908.05,0.82580665]
[1768026713265,0.19149656,909.08,908.06,0.68636506]
[1768026713465,0.19149656,909.08,908.07,0.68636506]
[1768026713766,0.19149656,909.08,908.08,0.68636506]
[1768026713965,0.19149656,909.08,908.09,0.68636506]
[1768026714162,0.19149656,909.08,908.1,0.68636506]
[1768026714366,0.19149656,909.08,908.11,0.68636506]
[1768026714665,0.19149656,909.08,908.12,0.68636506]
[1768026714864,0.19149656,909.08,908.13,0.68636506]
[1768026715065,0.19149656,909.08,908.14,0.68636506]
[1768026715265,0.19149656,909.08,908.15,0.68636506]
[1768026715465,0.19149656,909.08,908.16,0.68636506]
[1768026715670,0.19149656,909.08,908.17,0.68636506]
[1768026715969,0.19149656,909.08,908.18,0.68636506]
[1768026716269,0.19149656,909.08,908.19,0.68636506]
[1768026716470,0.19149656,909.08,908.2,0.68636506]
[1768026716670,0.19149656,909.08,908.21,0.68636506]
[1768026716865,0.19149656,909.08,908.22,0.68636506]
[1768026717070,0.19149656,909.08,908.23,0.68636506]
[1768026717264,0.19149656,909.08,907.97,0.82580665]
[1768026717265,0.19149656,909.08,908.24,0.68636506]
[1768026717470,0.19149656,909.08,908.25,0.68636506]
[1768026717671,0.19149656,909.08,908.26,0.68636506]
[1768026717967,0.19149656,909.08,907.97,0.82580665]
[1768026718171,0.19149656,909.08,907.98,0.68670582]
[1768026718371,0.19149656,909.08,907.99,0.68670582]
[1768026718569,0.19149656,909.08,908.0,0.68670582]
[1768026718768,0.19149656,909.08,908.01,0.68670582]
[1768026718968,0.19149656,909.08,908.02,0.68670582]
[1768026719171,0.19149656,909.08,908.03,0.68670582]
[1768026719367,0.19149656,909.08,908.04,0.68670582]
[1768026719669,0.19149656,909.08,908.05,0.68670582]
[1768026719870,0.19149656,909.08,908.06,0.68670582]
[1768026720071,0.19149656,909.08,908.07,0.68670582]
[1768026720271,0.19149656,909.08,908.08,0.68670582]
[1768026720473,0.19149656,909.08,908.09,0.68670582]
[1768026720672,0.19149656,909.08,908.1,0.68670582]
[1768026720872,0.19149656,909.08,908.11,0.68670582]
[1768026721074,0.19149656,909.08,908.12,0.68670582]
[1768026721274,0.19149656,909.08,908.13,0.68670582]
[1768026721471,0.19149656,909.08,908.14,0.68670582]
[1768026721672,0.19149656,909.08,908.15,0.68670582]
[1768026721870,0.19149656,909.08,908.16,0.68670582]
[1768026722074,0.19149656,909.08,908.17,0.68670582]
[1768026722275,0.19149656,909.08,908.18,0.68670582]
[1768026722471,0.19149656,909.08,908.19,0.68670582]
[1768026722672,0.19149656,909.08,908.2,0.68670582]
[1768026722873,0.19149656,909.08,908.21,0.68670582]
[1768026723071,0.19149656,909.08,907.97,0.82580665]
[1768026723072,0.19149656,909.08,908.22,0.68670582]
[1768026723375,0.19149656,909.08,908.23,0.68670582]
[1768026723575,0.19149656,909.08,908.24,0.68670582]
[1768026723777,0.19149656,909.08,908.25,0.68670582]
[1768026723971,0.19149656,909.08,908.26,0.68670582]
[1768026724175,0.19149656,909.08,908.27,0.68670582]
[1768026724476,0.19149656,909.08,907.98,0.82580665]
[1768026724676,0.19149656,909.08,907.99,0.68720789]
[1768026724874,0.19149656,909.08,908.0,0.68720789]
[1768026725073,0.19149656,909.08,908.01,0.68720789]
[1768026725272,0.19149656,909.08,908.02,0.68720789]
[1768026725473,0.19149656,909.08,908.03,0.68720789]
[1768026725773,0.19149656,909.08,908.04,0.68720789]
[1768026725978,0.19149656,909.08,908.05,0.68720789]
[1768026726174,0.19149656,909.08,908.06,0.68720789]
[1768026726472,0.19149656,909.08,908.07,0.68720789]
[1768026726677,0.19149656,909.08,908.08,0.68720789]
[1768026726976,0.19149656,909.08,908.09,0.68720789]
[1768026727176,0.19149656,909.08,908.1,0.68720789]
[1768026727377,0.19149656,909.08,908.11,0.68720789]
[1768026727576,0.19149656,909.08,908.12,0.68720789]
[1768026727777,0.19149656,909.08,908.13,0.68720789]
[1768026728078,0.19149656,909.08,908.14,0.68720789]
[1768026728377,0.19149656,909.08,908.15,0.68720789]
[1768026728577,0.19149656,909.08,908.16,0.68720789]
[1768026728774,0.19149656,909.08,908.17,0.68720789]
[1768026729079,0.19149656,909.08,908.18,0.68720789]
[1768026729279,0.19149656,909.08,908.19,0.68720789]
[1768026729580,0.19149656,909.08,908.2,0.68720789]
[1768026729780,0.19149656,909.08,908.21,0.68720789]
[1768026729980,0.19149656,909.08,908.22,0.68720789]
[1768026730180,0.19149656,909.08,908.23,0.68720789]
[1768026730381,0.19149656,909.08,908.24,0.68720789]
[1768026730582,0.19149656,909.08,907.95,0.82580665]
[1768026730782,0.19149656,909.08,907.96,0.68751799]
[1768026730982,0.19149656,909.08,907.97,0.68751799]
[1768026731277,0.19149656,909.08,907.98,0.68751799]
[1768026731483,0.19149656,909.08,907.99,0.68751799]
[1768026731685,0.19149656,909.08,908.0,0.68751799]
[1768026731882,0.19149656,909.08,908.01,0.68751799]
[1768026732178,0.19149656,909.08,908.02,0.68751799]
[1768026732379,0.19149656,909.08,908.03,0.68751799]
[1768026732681,0.19149656,909.08,908.04,0.68751799]
[1768026732878,0.19149656,909.08,908.05,0.68751799]
[1768026733179,0.19149656,909.08,908.06,0.68751799]
[1768026733382,0.19149656,909.08,907.69,1.10040832]
[1768026733383,0.19149656,909.08,908.07,0.68751799]
[1768026733584,0.19149656,909.08,908.08,0.68751799]
[1768026733879,0.19149656,909.08,908.09,0.68751799]
[1768026734078,0.19149656,909.08,908.1,0.68751799]
[1768026734281,0.19149656,909.08,908.11,0.68751799]
[1768026734482,0.19149656,909.08,908.12,0.68751799]
[1768026734679,0.19149656,909.08,907.82,0.82580665]
[1768026734880,0.19149656,909.08,907.83,0.68721439]
[1768026735079,0.19149656,909.08,907.84,0.68721439]
[1768026735284,0.19149656,909.08,907.85,0.68721439]
[1768026735482,0.19149656,909.08,907.86,0.68721439]
[1768026735683,0.19149656,909.08,907.87,0.68721439]
[1768026735880,0.19149656,909.08,907.88,0.68721439]
[1768026736080,0.19149656,909.08,907.89,0.68721439]
[1768026736286,0.19149656,909.08,907.9,0.68721439]
[1768026736486,0.19149656,909.08,907.91,0.68721439]
[1768026736686,0.19149656,909.08,907.92,0.68721439]
[1768026736886,0.19149656,909.08,907.93,0.68721439]
[1768026737182,0.19149656,909.08,907.94,0.68721439]
[1768026737382,0.19149656,909.08,907.95,0.68721439]
[1768026737581,0.19149656,909.08,907.96,0.68721439]
[1768026737881,0.19149656,909.08,907.97,0.68721439]
[1768026738088,0.19149656,909.08,907.98,0.68721439]
[1768026738286,0.19149656,909.08,907.99,0.68721439]
[1768026738481,0.19149656,909.08,908.0,0.68721439]
[1768026738684,0.19149656,909.08,908.01,0.68721439]
[1768026738886,0.19149656,909.08,908.02,0.68721439]
[1768026739086,0.19149656,909.08,908.03,0.68721439]
[1768026739387,0.19149656,909.08,908.04,0.68721439]
[1768026739587,0.19149656,909.08,908.05,0.68721439]
[1768026739784,0.19149656,909.08,908.06,0.68721439]
[1768026739988,0.19149656,909.08,907.77,0.82580665]
[1768026740288,0.19149656,909.08,907.78,0.68551155]
[1768026740489,0.19149656,909.08,907.79,0.68551155]
[1768026740784,0.19149656,909.08,907.8,0.68551155]
[1768026740983,0.19149656,909.08,907.81,0.68551155]
[1768026741187,0.19149656,909.08,907.82,0.68551155]
[1768026741387,0.19149656,909.08,907.83,0.68551155]
[1768026741689,0.19149656,909.08,907.84,0.68551155]
[1768026741984,0.19149656,909.08,907.85,0.68551155]
[1768026742189,0.19149656,909.08,907.86,0.68551155]
[1768026742385,0.19149656,909.08,907.87,0.68551155]
[1768026742588,0.19149656,909.08,907.88,0.68551155]
[1768026742785,0.19149656,909.08,907.89,0.68551155]
[1768026742988,0.19149656,909.08,907.9,0.68551155]
[1768026743286,0.19149656,909.08,907.91,0.68551155]
[1768026743489,0.19149656,909.08,907.92,0.68551155]
[1768026743687,0.19149656,909.08,907.93,0.68551155]
[1768026743888,0.19149656,909.08,907.94,0.68551155]
[1768026744085,0.19149656,909.08,907.95,0.68551155]
[1768026744291,0.19149656,909.08,907.96,0.68551155]
[1768026744487,0.19149656,909.08,907.97,0.68551155]
[1768026744687,0.19149656,909.08,907.98,0.68551155]
[1768026744887,0.19149656,909.08,907.99,0.68551155]
[1768026745190,0.19149656,909.08,908.0,0.68551155]
[1768026745387,0.19149656,909.08,908.01,0.68551155]
[1768026745586,0.19149656,909.08,908.02,0.68551155]
[1768026745890,0.19149656,909.08,908.03,0.68551155]
[1768026746091,0.19149656,909.08,908.04,0.68551155]
[1768026746292,0.19149656,909.08,908.05,0.68551155]
[1768026746488,0.19149656,909.08,908.06,0.68551155]
[1768026746690,0.19149656,909.08,907.87,1.967]
[1768026746691,0.19149656,909.08,908.07,0.68527763]
[1768026746892,0.19149656,909.08,907.87,1.967]
[1768026747192,0.19149656,909.08,907.88,0.68527652]
[1768026747391,0.19149656,909.08,907.89,0.68527652]
[1768026747592,0.19149656,909.08,907.9,0.68527652]
[1768026747790,0.19149656,909.08,907.91,0.68527652]
[1768026748093,0.19149656,909.08,907.92,0.68527652]
[1768026748288,0.19149656,909.08,907.93,0.68527652]
[1768026748498,0.19149656,909.08,907.94,0.68527652]
[1768026748793,0.19149656,909.08,907.95,0.68527652]
[1768026749089,0.19149656,909.08,907.96,0.68527652]
[1768026749394,0.19149656,909.08,907.97,0.68527652]
[1768026749595,0.19149656,909.08,907.98,0.68527652]
[1768026749891,0.19149656,909.08,907.99,0.68527652]
[1768026750090,0.19149656,909.08,907.87,1.967]
[1768026750091,0.19149656,909.08,908.0,0.68527652]
[1768026750290,0.19149656,909.08,908.01,0.68527652]
[1768026750596,0.19149656,909.08,908.02,0.68527652]
[1768026750795,0.19149656,909.08,908.03,0.68527652]
[1768026750994,0.19149656,909.08,908.04,0.68527652]
[1768026751194,0.19149656,909.08,908.05,0.68527652]
[1768026751394,0.19149656,909.08,908.06,0.68527652]
[1768026751592,0.19149656,909.08,908.07,0.68527652]
[1768026751796,0.19149656,909.08,908.08,0.68527652]
[1768026751994,0.19149656,909.08,907.87,1.967]
[1768026752197,0.19149656,909.08,907.88,0.68542952]
[1768026752498,0.19149656,909.08,907.89,0.68542952]
[1768026752792,0.19149656,909.08,907.9,0.68542952]
[1768026752991,0.19149656,909.08,907.91,0.68542952]
[1768026753192,0.19149656,909.08,907.92,0.68542952]
[1768026753392,0.19149656,909.08,907.93,0.68542952]
[1768026753597,0.19149656,909.08,907.94,0.68542952]
[1768026753796,0.19149656,909.08,907.95,0.68542952]
[1768026753996,0.19149656,909.08,907.87,1.967]
[1768026753997,0.19149656,909.08,907.96,0.68542952]
[1768026754194,0.19149656,909.08,907.97,0.68542952]
[1768026754394,0.19149656,909.08,907.98,0.68542952]
[1768026754698,0.19149656,909.08,907.99,0.68542952]
[1768026754897,0.19149656,909.08,908.0,0.68542952]
[1768026755098,0.19149656,909.08,908.01,0.68542952]
[1768026755298,0.19149656,909.08,908.02,0.68542952]
[1768026755499,0.19149656,909.08,908.03,0.68542952]
[1768026755799,0.19149656,909.08,908.04,0.68542952]
[1768026756098,0.19149656,909.08,907.87,1.967]
[1768026756099,0.19149656,909.08,908.05,0.68542952]
[1768026756394,0.19149656,909.08,908.06,0.68586077]
[1768026756600,0.19149656,909.08,908.07,0.68586077]
[1768026756800,0.19149656,909.08,908.08,0.68586077]
[1768026757096,0.19149656,909.08,908.09,0.68586077]
[1768026757300,0.19149656,909.08,908.1,0.68586077]
[1768026757498,0.19149656,909.08,908.11,0.68586077]
[1768026757698,0.19149656,909.08,908.12,0.68586077]
[1768026757999,0.19149656,909.08,907.87,1.967]
[1768026758201,0.19149656,909.08,907.88,0.68599422]
[1768026758400,0.19149656,909.08,907.89,0.68599422]
[1768026758603,0.19149656,909.08,907.9,0.68599422]
[1768026758798,0.19149656,909.08,907.91,0.68599422]
[1768026758999,0.19149656,909.08,907.92,0.68599422]
[1768026759198,0.19149656,909.08,907.93,0.68599422]
[1768026759397,0.19149656,909.08,907.94,0.68599422]
[1768026759602,0.19149656,909.08,907.95,0.68599422]
[1768026759804,0.19149656,909.08,907.96,0.68599422]
[1768026760003,0.19149656,909.08,907.97,0.68599422]
[1768026760303,0.19149656,909.08,907.98,0.68599422]
[1768026760599,0.19149656,909.08,907.99,0.68599422]
[1768026760801,0.19149656,909.08,908.0,0.68599422]
[1768026761002,0.19149656,909.08,908.01,0.68599422]
[1768026761204,0.19149656,909.08,908.02,0.68599422]
[1768026761501,0.19149656,909.08,908.03,0.68599422]
[1768026761700,0.19149656,909.08,908.04,0.68599422]
[1768026761906,0.19149656,909.08,908.05,0.68599422]
[1768026762107,0.19149656,909.08,908.06,0.68599422]
[1768026762306,0.19149656,909.08,908.07,0.68599422]
[1768026762508,0.19149656,909.08,908.08,0.68599422]
[1768026762709,0.19149656,909.08,908.09,0.68599422]
[1768026762903,0.19149656,909.08,908.1,0.68599422]
[1768026763110,0.19149656,909.08,908.11,0.68599422]
[1768026763409,0.19149656,909.08,908.12,0.68599422]
[1768026763611,0.19149656,909.08,908.13,0.68599422]
[1768026763906,0.19149656,909.08,908.14,0.68599422]
[1768026764110,0.19149656,909.08,907.87,1.967]
[1768026764310,0.19149656,909.08,907.88,0.68640338]
[1768026764504,0.19149656,909.08,907.89,0.68640338]
[1768026764704,0.19149656,909.08,907.9,0.68640338]
[1768026764908,0.19149656,909.08,907.91,0.68640338]
[1768026765109,0.19149656,909.08,907.92,0.68640338]
[1768026765309,0.19149656,909.08,907.93,0.68640338]
[1768026765504,0.19149656,909.08,907.94,0.68640338]
[1768026765705,0.19149656,909.08,907.95,0.68640338]
[1768026765909,0.19149656,909.08,907.96,0.68640338]
[1768026766107,0.19149656,909.08,907.97,0.68640338]
[1768026766310,0.19149656,909.08,907.98,0.68640338]
[1768026766507,0.19149656,909.08,907.99,0.68640338]
[1768026766709,0.19149656,909.08,908.0,0.68640338]
[1768026766909,0.19149656,909.08,908.01,0.68640338]
[1768026767107,0.19149656,909.08,908.02,0.68640338]
[1768026767310,0.19149656,909.08,908.03,0.68640338]
[1768026767513,0.19149656,909.08,908.04,0.68640338]
[1768026767714,0.19149656,909.08,908.05,0.68640338]
[1768026767913,0.19149656,909.08,908.06,0.68640338]
[1768026768113,0.19149656,909.08,908.07,0.68640338]
[1768026768415,0.19149656,909.08,908.08,0.68640338]
[1768026768615,0.19149656,909.08,908.09,0.68640338]
[1768026768815,0.19149656,909.08,908.1,0.68640338]
[1768026769014,0.19149656,909.08,908.11,0.68640338]
[1768026769212,0.19149656,909.08,908.12,0.68640338]
[1768026769412,0.19149656,909.08,908.13,0.68640338]
[1768026769613,0.19149656,909.08,908.14,0.68640338]
[1768026769817,0.19149656,909.08,908.15,0.68640338]
[1768026770017,0.19149656,909.08,908.16,0.68640338]
[1768026770217,0.19149656,909.08,908.17,0.68640338]
[1768026770418,0.19149656,909.08,908.11,1.906]
[1768026770619,0.19149656,909.08,908.12,0.68763968]
[1768026770819,0.19149656,909.08,908.13,0.68763968]
[1768026771017,0.19149656,909.08,908.14,0.68763968]
[1768026771219,0.19149656,909.08,908.15,0.68763968]
[1768026771521,0.19149656,909.08,908.16,0.68763968]
[1768026771815,0.19149656,909.08,908.17,0.68763968]
[1768026772020,0.19149656,909.08,908.11,1.906]
[1768026772221,0.19149656,909.08,908.12,0.68791017]
[1768026772422,0.19149656,909.08,908.13,0.68791017]
[1768026772621,0.19149656,909.08,908.14,0.68791017]
[1768026772820,0.19149656,909.08,908.15,0.68791017]
[1768026773117,0.19149656,909.08,908.16,0.68791017]
[1768026773417,0.19149656,909.08,908.17,0.68791017]
[1768026773717,0.19149656,909.08,908.18,0.68791017]
[1768026774018,0.19149656,909.08,908.19,0.68791017]
[1768026774320,0.19149656,909.08,908.11,1.906]
[1768026774518,0.19149656,909.08,908.12,0.68811959]
[1768026774721,0.19149656,909.08,908.13,0.68811959]
[1768026775018,0.19149656,909.08,908.14,0.68811959]
[1768026775220,0.19149656,909.08,908.15,0.68811959]
[1768026775417,0.19149656,909.08,908.16,0.68811959]
[1768026775622,0.19149656,909.08,908.11,1.906]
[1768026775623,0.19149656,909.08,908.17,0.68811959]
[1768026775923,0.19149656,909.08,908.18,0.68811959]
[1768026776118,0.19149656,909.08,908.19,0.68811959]
[1768026776321,0.19149656,909.08,908.2,0.68811959]
[1768026776520,0.19149656,909.08,908.11,1.906]
[1768026776719,0.19149656,909.08,908.12,0.68828553]
[1768026777020,0.19149656,909.08,908.13,0.68828553]
[1768026777220,0.19149656,909.08,908.14,0.68828553]
[1768026777421,0.19149656,909.08,908.15,0.68828553]
[1768026777618,0.19149656,909.08,908.16,0.68828553]
[1768026777821,0.19149656,909.08,908.17,0.68828553]
[1768026778021,0.19149656,909.08,908.18,0.68828553]
[1768026778221,0.19149656,909.08,908.19,0.68828553]
[1768026778426,0.19149656,909.08,908.2,0.68828553]
[1768026778627,0.19149656,909.08,908.11,1.906]
[1768026778826,0.19149656,909.08,908.12,0.68832062]
[1768026779025,0.19149656,909.08,908.13,0.68832062]
[1768026779330,0.19149656,909.08,908.14,0.68832062]
[1768026779626,0.19149656,909.08,908.15,0.68832062]
[1768026779826,0.19149656,909.08,908.16,0.68832062]
[1768026780124,0.19149656,909.08,908.17,0.68832062]
[1768026780321,0.19149656,909.08,908.18,0.68832062]
[1768026780524,0.19149656,909.08,908.19,0.68832062]
[1768026780722,0.19149656,909.08,908.2,0.68832062]
[1768026781022,0.19149656,909.08,908.11,1.906]
[1768026781225,0.19149656,909.08,908.12,0.68833558]
[1768026781427,0.19149656,909.08,908.13,0.68833558]
[1768026781627,0.19149656,909.08,908.14,0.68833558]
[1768026781926,0.19149656,909.08,908.15,0.68833558]
[1768026782127,0.19149656,909.08,908.16,0.68833558]
[1768026782327,0.19149656,909.08,908.17,0.68833558]
[1768026782527,0.19149656,909.08,908.18,0.68833558]
[1768026782826,0.19149656,909.08,908.11,1.906]
[1768026782827,0.19149656,909.08,908.19,0.68833558]
[1768026783027,0.19149656,909.08,908.2,0.68833558]
[1768026783228,0.19149656,909.08,908.11,1.906]
[1768026783427,0.19149656,909.08,908.12,0.68834792]
[1768026783725,0.19149656,909.08,908.13,0.68834792]
[1768026783928,0.19149656,909.08,908.14,0.68834792]
[1768026784128,0.19149656,909.08,908.15,0.68834792]
[1768026784323,0.19149656,909.08,908.16,0.68834792]
[1768026784525,0.19149656,909.08,908.17,0.68834792]
[1768026784827,0.19149656,909.08,908.18,0.68834792]
[1768026785026,0.19149656,909.08,908.11,1.906]
[1768026785227,0.19149656,909.08,908.12,0.68835337]
[1768026785427,0.19149656,909.08,908.13,0.68835337]
[1768026785629,0.19149656,909.08,908.14,0.68835337]
[1768026785829,0.19149656,909.08,908.15,0.68835337]
[1768026786129,0.19149656,909.08,908.16,0.68835337]
[1768026786430,0.19149656,909.08,908.17,0.68835337]
[1768026786630,0.19149656,909.08,908.18,0.68835337]
[1768026786929,0.19149656,909.08,908.11,1.906]
[1768026787126,0.19149656,909.08,908.12,0.68835833]
[1768026787327,0.19149656,909.08,908.13,0.68835833]
[1768026787530,0.19149656,909.08,908.14,0.68835833]
[1768026787827,0.19149656,909.08,908.15,0.68835833]
[1768026788031,0.19149656,909.08,908.16,0.68835833]
[1768026788226,0.19149656,909.08,908.17,0.68835833]
[1768026788428,0.19149656,909.08,908.18,0.68835833]
[1768026788627,0.19149656,909.08,908.11,1.906]
[1768026788832,0.19149656,909.08,908.12,0.68838232]
[1768026789034,0.19149656,909.08,908.13,0.68838232]
[1768026789233,0.19149656,909.08,908.14,0.68838232]
[1768026789429,0.19149656,909.08,908.15,0.68838232]
[1768026789635,0.19149656,909.08,908.16,0.68838232]
[1768026789829,0.19149656,909.08,908.17,0.68838232]
[1768026790034,0.19149656,909.08,908.18,0.68838232]
[1768026790234,0.19149656,909.08,908.11,1.906]
[1768026790530,0.19149656,909.08,908.12,0.68843543]
[1768026790733,0.19149656,909.08,908.13,0.68843543]
[1768026790934,0.19149656,909.08,908.14,0.68843543]
[1768026791134,0.19149656,909.08,908.15,0.68843543]
[1768026791336,0.19149656,909.08,908.16,0.68843543]
[1768026791537,0.19149656,909.08,908.17,0.68843543]
[1768026791832,0.19149656,909.08,908.18,0.68843543]
[1768026792036,0.19149656,909.08,908.11,1.906]
[1768026792238,0.19149656,909.08,908.12,0.68848169]
[1768026792433,0.19149656,909.08,908.13,0.68848169]
[1768026792633,0.19149656,909.08,908.14,0.68848169]
[1768026792834,0.19149656,909.08,908.15,0.68848169]
[1768026793033,0.19149656,909.08,908.16,0.68848169]
[1768026793337,0.19149656,909.08,908.17,0.68848169]
[1768026793637,0.19149656,909.08,908.11,1.906]
[1768026793638,0.19149656,909.08,908.18,0.68848169]
[1768026793837,0.19149656,909.08,908.19,0.68848169]
[1768026794132,0.19149656,909.08,908.2,0.68848169]
[1768026794438,0.19149656,909.08,908.11,1.906]
[1768026794439,0.19149656,909.08,908.21,0.68848169]
[1768026794632,0.19149656,909.08,908.11,1.906]
[1768026794837,0.19149656,909.08,908.12,0.68850222]
[1768026795137,0.19149656,909.08,908.13,0.68850222]
[1768026795337,0.19149656,909.08,908.14,0.68850222]
[1768026795638,0.19149656,909.08,908.15,0.68850222]
[1768026795833,0.19149656,909.08,908.16,0.68850222]
[1768026796033,0.19149656,909.08,908.17,0.68850222]
[1768026796333,0.19149656,909.08,908.18,0.68850222]
[1768026796537,0.19149656,909.08,908.19,0.68850222]
[1768026796734,0.19149656,909.08,908.2,0.68850222]
[1768026797038,0.19149656,909.08,908.21,0.68850222]
[1768026797238,0.19149656,909.08,908.11,1.906]
[1768026797534,0.19149656,909.08,908.12,0.68829991]
[1768026797734,0.19149656,909.08,908.13,0.68829991]
[1768026797934,0.19149656,909.08,908.14,0.68829991]
[1768026798132,0.19149656,909.08,908.15,0.68829991]
[1768026798436,0.19149656,909.08,908.16,0.68829991]
[1768026798636,0.19149656,909.08,908.17,0.68829991]
[1768026798835,0.19149656,909.08,908.18,0.68829991]
[1768026799034,0.19149656,909.08,908.19,0.68829991]
[1768026799238,0.19149656,909.08,908.2,0.68829991]
[1768026799435,0.19149656,909.08,908.21,0.68829991]
[1768026799634,0.19149656,909.08,908.11,1.906]
[1768026799834,0.19149656,909.08,908.12,0.68829986]
[1768026800035,0.19149656,909.08,908.13,0.68829986]
[1768026800335,0.19149656,909.08,908.11,1.906]
[1768026800336,0.19149656,909.08,908.14,0.68829986]
[1768026800535,0.19149656,909.08,908.15,0.68829986]
[1768026800738,0.19149656,909.08,908.16,0.68829986]
[1768026800936,0.19149656,909.08,908.17,0.68829986]
[1768026801134,0.19149656,909.08,908.18,0.68829986]
[1768026801337,0.19149656,909.08,908.19,0.68829986]
[1768026801537,0.19149656,909.08,908.2,0.68829986]
[1768026801738,0.19149656,909.08,908.21,0.68829986]
[1768026801939,0.19149656,909.08,908.11,1.906]
[1768026802141,0.19149656,909.08,908.12,0.68830013]
[1768026802342,0.19149656,909.08,908.13,0.68830013]
[1768026802641,0.19149656,909.08,908.14,0.68830013]
[1768026802841,0.19149656,909.08,908.15,0.68830013]
[1768026803042,0.19149656,909.08,908.16,0.68830013]
[1768026803335,0.19149656,909.08,908.17,0.68830013]
[1768026803539,0.19149656,909.08,908.18,0.68830013]
[1768026803737,0.19149656,909.08,908.19,0.68830013]
[1768026803943,0.19149656,909.08,908.2,0.68830013]
[1768026804143,0.19149656,909.08,908.21,0.68830013]
[1768026804343,0.19149656,909.08,908.11,1.906]
[1768026804544,0.19149656,909.08,908.12,0.68830018]
[1768026804744,0.19149656,909.08,908.13,0.68830018]
[1768026805044,0.19149656,909.08,908.14,0.68830018]
[1768026805244,0.19149656,909.08,908.15,0.68830018]
[1768026805444,0.19149656,909.08,908.16,0.68830018]
[1768026805643,0.19149656,909.08,908.17,0.68830018]
[1768026805840,0.19149656,909.08,908.18,0.68830018]
[1768026806040,0.19149656,909.08,908.19,0.68830018]
[1768026806242,0.19149656,909.08,908.2,0.68830018]
[1768026806445,0.19149656,909.08,908.21,0.68830018]
[1768026806644,0.19149656,909.08,908.22,0.68830018]
[1768026806842,0.19149656,909.08,908.23,0.68830018]
[1768026807042,0.19149656,909.08,908.24,0.68830018]
[1768026807244,0.19149656,909.08,908.25,0.68830018]
[1768026807442,2.75675331,910.04,908.26,0.68830018]
[1768026807646,0.19143915,909.24,908.27,0.68830018]
[1768026807942,2.82715775,909.31,908.28,0.68830018]
[1768026808146,0.19142651,909.24,908.29,0.68830018]
[1768026808343,0.19142651,909.24,908.3,0.68830018]
[1768026808547,0.19142651,909.24,908.31,0.68830018]
[1768026808746,0.19142651,909.24,908.32,0.68830018]
[1768026808949,0.19142651,909.24,908.33,0.68830018]
[1768026809147,0.19142651,909.24,908.34,0.68830018]
[1768026809348,0.19142651,909.24,908.35,0.68830018]
[1768026809544,0.19142651,909.24,908.36,0.68830018]
[1768026809748,0.19142651,909.24,908.37,0.68830018]
[1768026810049,0.19142651,909.24,908.38,0.68830018]
[1768026810250,0.19142651,909.24,908.39,0.68830018]
[1768026810551,0.19142651,909.24,908.4,0.68830018]
[1768026810846,0.19142651,909.24,908.41,0.68830018]
[1768026811045,0.19142651,909.24,908.42,0.68830018]
[1768026811248,0.19142651,909.24,908.43,0.68830018]
[1768026811448,0.19142651,909.24,908.44,0.68830018]
[1768026811646,0.19142651,909.24,908.15,0.8249639]
[1768026811850,0.19142651,909.24,908.16,0.68560918]
[1768026812147,0.19142651,909.24,908.17,0.68560918]
[1768026812445,0.19142651,909.24,908.18,0.68560918]
[1768026812650,0.19142651,909.24,908.19,0.68560918]
[1768026812946,0.19142651,909.24,908.2,0.68560918]
[1768026813150,0.19142651,909.24,908.21,0.68560918]
[1768026813346,0.19142651,909.24,908.22,0.68560918]
[1768026813547,0.19142651,909.24,908.23,0.68560918]
[1768026813847,0.19142651,909.24,908.24,0.68560918]
[1768026814047,0.19142651,909.24,908.25,0.68560918]
[1768026814247,0.19142651,909.24,908.26,0.68560918]
[1768026814449,0.19142651,909.24,908.27,0.68560918]
[1768026814650,0.19142651,909.24,908.28,0.68560918]
[1768026814850,0.19142651,909.24,908.29,0.68560918]
[1768026815054,0.19142651,909.24,908.3,0.68560918]
[1768026815351,0.19142651,909.24,908.31,0.68560918]
[1768026815554,0.19142651,909.24,908.32,0.68560918]
[1768026815755,0.19142651,909.24,908.11,1.906]
[1768026815952,0.19142651,909.24,908.12,0.68524213]
[1768026816251,0.19142651,909.24,908.13,0.68524213]
[1768026816450,0.19142651,909.24,908.11,1.906]
[1768026816451,0.19142651,909.24,908.14,0.68524213]
[1768026816652,0.19142651,909.24,908.15,0.68524213]
[1768026816851,0.19142651,909.24,908.11,1.906]
[1768026816852,0.19142651,909.24,908.16,0.68524213]
[1768026817055,0.19142651,909.24,908.17,0.68524213]
[1768026817351,0.19142651,909.24,908.18,0.68524213]
[1768026817655,0.19142651,909.24,908.19,0.68524213]
[1768026817856,0.19142651,909.24,908.2,0.68524213]
[1768026818055,0.19142651,909.24,908.21,0.68524213]
[1768026818253,0.19142651,909.24,908.22,0.68524213]
[1768026818454,0.19142651,909.24,908.23,0.68524213]
[1768026818652,0.19142651,909.24,908.24,0.68524213]
[1768026818852,0.19142651,909.24,908.25,0.68524213]
[1768026819153,0.19142651,909.24,908.26,0.68524213]
[1768026819356,0.19142651,909.24,908.27,0.68524213]